bitfinex-derivatives/quotes_ETHF0:USTF0_20230403
["timestamp","ask_amount","ask_price","bid_price","bid_amount"]
[1680551575946,3.2078,1821.7,1821.6,1.097]
[1680551576149,3.2078,1821.7,1821.5,1.097]
[1680551576353,1.086,1821.6,1821.1,1.097]
[1680551576748,3.2078,1821.5,1821.3,1.092]
[1680551578659,3.2078,1821.5,1821.1,1.097]
[1680551578954,3.2078,1821.7,1821.4,1.097]
[1680551579553,4.2988,1821.9,1821.4,1.097]
[1680551579753,4.2988,1821.9,1821.5,5.476]
[1680551579754,1.99179463,1821.6,1821.5,5.476]
[1680551579953,3.2078,1821.9,1821.5,1.097]
[1680551580154,1.99028796,1821.8,1821.7,1.097]
[1680551583955,1.88508796,1821.8,1821.7,1.097]
[1680551584157,1.86008796,1821.8,1821.7,1.097]
[1680551586865,1.86008796,1821.8,1821.4,1.64256766]
[1680551588574,4.2948,1821.7,1821.4,0.55056766]
[1680551588775,4.2948,1821.7,1821.2,4.3048]
[1680551588972,4.2948,1821.7,1821.2,1.097]
[1680551588973,1.86159463,1821.6,1821.2,1.097]
[1680551589672,3.2078,1821.5,1821.2,1.097]
[1680551589866,4.3048,1821.5,1821.1,4.6516]
[1680551590075,4.2988,1821.3,1821.0,0.1]
[1680551590573,3.2078,1821.1,1821.0,0.1]
[1680551590770,4.2988,1821.1,1821.0,0.1]
[1680551590970,5.0,1820.9,1819.9,3.75098861]
[1680551591180,4.2958,1820.5,1820.1,4.6596]
[1680551591380,1.87064156,1820.4,1820.2,1.097]
[1680551591677,1.87064156,1820.4,1820.3,2.097]
[1680551591873,3.2078,1820.5,1820.1,4.6596]
[1680551592066,3.2078,1820.5,1820.1,10.1356]
[1680551592266,4.2958,1820.5,1820.0,2.90655274]
[1680551592467,6.089,1821.0,1820.0,1.80955274]
[1680551592468,4.3048,1820.3,1820.0,1.80955274]
[1680551592673,1.87064156,1820.4,1820.0,3.90655274]
[1680551592674,5.07844156,1820.4,1820.0,3.90655274]
[1680551592877,5.07844156,1820.4,1820.0,2.90655274]
[1680551594185,1.87064156,1820.4,1820.0,2.90655274]
[1680551594392,5.07844156,1820.4,1820.0,2.90655274]
[1680551594683,5.07844156,1820.4,1820.0,1.80955274]
[1680551594684,4.2938,1820.1,1820.0,1.80955274]
[1680551596180,1.086,1820.3,1820.0,1.80955274]
[1680551597180,1.088,1820.1,1820.0,1.80955274]
[1680551598482,1.088,1820.1,1820.0,0.15]
[1680551599183,10.167,1820.1,1820.0,0.15]
[1680551599390,1.0,1820.0,1819.3,0.56031794]
[1680551599579,1.0,1820.0,1818.9,4.3048]
[1680551599580,1.086,1819.4,1819.1,3.2078]
[1680551599785,1.086,1819.4,1819.1,5.1199]
[1680551599985,4.2938,1819.4,1819.1,5.1199]
[1680551600483,1.086,1819.4,1819.1,5.1199]
[1680551602088,1.091,1819.3,1819.0,0.65263049]
[1680551602282,1.088,1819.1,1819.0,0.1]
[1680551604792,2.088,1819.1,1819.0,0.1]
[1680551604985,1.088,1819.1,1819.0,0.1]
[1680551605489,2.088,1819.1,1819.0,0.1]
[1680551605997,3.96845587,1819.1,1819.0,0.1]
[1680551606385,3.96845587,1819.1,1818.5,7.883]
[1680551606588,1.086,1818.7,1818.5,7.883]
[1680551607389,1.091,1818.6,1818.5,4.6752]
[1680551608186,5.476,1817.5,1816.2,3.41482822]
[1680551608388,5.0,1817.6,1816.0,0.15]
[1680551608389,10.3208,1816.3,1816.0,0.15]
[1680551608693,1.087,1816.1,1815.6,4.8011]
[1680551608890,1.086,1815.8,1815.6,4.8011]
[1680551609291,1.086,1815.9,1815.6,4.8011]
[1680551609593,3.2078,1816.2,1815.8,1.097]
[1680551609891,1.086,1816.3,1815.8,1.097]
[1680551610099,4.2938,1816.3,1815.8,1.097]
[1680551610391,4.2938,1816.3,1815.6,0.55344752]
[1680551610392,5.3958,1815.9,1815.6,0.55344752]
[1680551610597,4.2938,1815.7,1815.2,4.8011]
[1680551610788,1.086,1815.6,1815.3,3.2078]
[1680551610985,1.088,1815.8,1815.3,4.3048]
[1680551611196,4.2938,1816.2,1815.7,1.097]
[1680551611389,1.091,1816.0,1815.7,3.2078]
[1680551611693,1.091,1816.0,1815.6,5.0]
[1680551611995,2.99415792,1816.1,1815.7,4.3048]
[1680551612199,1.90315792,1816.1,1815.7,3.2078]
[1680551612397,3.2078,1816.0,1815.6,0.54408312]
[1680551612698,3.2078,1816.2,1815.5,3.2078]
[1680551612895,3.2078,1815.8,1815.3,3.2078]
[1680551613096,2.203,1815.7,1815.3,3.2078]
[1680551613492,1.90694888,1815.6,1815.3,3.2078]
[1680551613992,1.90694888,1815.6,1815.3,4.2078]
[1680551614195,1.90694888,1815.6,1815.4,2.203]
[1680551614399,2.183,1815.9,1815.5,3.2078]
[1680551615098,2.186,1815.7,1815.3,3.2078]
[1680551615795,2.186,1815.7,1815.5,3.2078]
[1680551615994,4.08994888,1815.6,1815.3,3.2078]
[1680551616496,5.4108,1815.4,1815.2,4.8011]
[1680551616696,2.203,1815.4,1815.2,4.8011]
[1680551616892,4.38,1815.3,1815.0,0.1]
[1680551617089,2.183,1815.1,1815.0,0.1]
[1680551617288,5.3908,1815.1,1815.0,0.1]
[1680551617505,11.6536721,1815.1,1815.0,0.1]
[1680551617800,5.3908,1815.1,1815.0,0.1]
[1680551618701,2.183,1815.3,1815.0,0.1]
[1680551618892,2.183,1815.3,1815.0,3.3078]
[1680551619696,2.2,1815.5,1815.2,3.2078]
[1680551619899,2.2,1815.5,1815.1,1.0]
[1680551620095,2.2,1815.5,1815.0,2.303]
[1680551620508,2.2,1815.5,1815.1,3.2078]
[1680551621196,1.90846586,1815.4,1815.1,3.2078]
[1680551621397,2.203,1815.7,1815.4,1.326]
[1680551621590,2.203,1815.7,1815.6,3.2078]
[1680551621798,0.53937908,1816.6,1815.7,2.203]
[1680551621799,3.2078,1816.6,1815.7,2.203]
[1680551621997,3.2078,1816.6,1816.1,3.2078]
[1680551622296,2.203,1816.4,1816.1,3.2078]
[1680551622502,2.183,1816.2,1815.7,7.8736]
[1680551622703,2.203,1816.0,1815.7,7.8736]
[1680551623005,2.183,1816.2,1815.9,3.2078]
[1680551624109,2.186,1816.4,1815.9,3.2078]
[1680551624307,2.186,1816.4,1816.0,1.0]
[1680551624500,2.186,1816.4,1815.9,3.2078]
[1680551625405,2.183,1816.5,1816.1,3.2078]
[1680551625803,2.183,1816.5,1815.9,2.193]
[1680551626101,3.2078,1816.2,1815.7,4.6658]
[1680551626302,5.4108,1816.0,1815.7,4.6658]
[1680551626605,2.183,1815.8,1815.7,4.6658]
[1680551627008,5.3908,1815.8,1815.7,4.6658]
[1680551627404,2.183,1815.8,1815.3,10.3598]
[1680551627709,5.3908,1815.8,1815.3,10.3598]
[1680551628205,2.183,1815.8,1815.3,10.3598]
[1680551628507,5.4108,1816.0,1815.5,5.4008]
[1680551628902,2.183,1815.8,1815.5,3.2078]
[1680551631005,2.183,1815.8,1815.3,7.15]
[1680551631203,2.183,1815.8,1815.4,3.2078]
[1680551631408,2.19,1815.6,1815.2,3.2078]
[1680551632107,3.2078,1815.8,1815.4,2.203]
[1680551632302,3.2078,1815.8,1815.4,5.4108]
[1680551633605,2.183,1815.5,1815.1,8.1951]
[1680551633802,5.3908,1815.5,1815.1,8.1951]
[1680551634200,10.8668,1815.5,1815.0,2.303]
[1680551634513,2.183,1815.1,1815.0,0.1]
[1680551634913,2.183,1815.1,1814.2,2.48133414]
[1680551634914,1.1,1815.0,1814.2,2.48133414]
[1680551635215,1.0,1814.3,1814.2,0.00043414]
[1680551635401,1.0,1814.3,1814.2,2.203]
[1680551636011,0.00834932,1814.3,1814.2,5.4108]
[1680551636216,1.0,1814.5,1814.2,5.4108]
[1680551636510,2.203,1814.8,1814.4,3.2078]
[1680551636706,7.0,1814.5,1814.4,3.2078]
[1680551636907,9.203,1814.8,1814.3,2.203]
[1680551637107,12.0,1814.6,1814.3,2.203]
[1680551637420,1.0,1814.7,1814.3,2.203]
[1680551637606,1.0,1814.7,1814.5,2.203]
[1680551637806,34.1,1814.9,1814.6,5.4088]
[1680551638208,3.2078,1815.3,1814.8,2.203]
[1680551638409,3.2078,1815.3,1814.8,5.4108]
[1680551638807,7.0,1815.1,1814.8,5.4108]
[1680551639010,3.2078,1815.5,1815.0,5.4108]
[1680551639311,12.0,1815.5,1815.2,5.4108]
[1680551639609,12.0,1815.6,1815.4,2.203]
[1680551639805,3.2078,1815.7,1815.5,1.0]
[1680551640513,3.2078,1815.9,1815.6,2.193]
[1680551640708,3.2078,1815.9,1815.7,1.0]
[1680551644016,12.0,1815.6,1815.3,6.0051]
[1680551644215,7.0,1815.6,1815.1,3.2078]
[1680551644509,3.2078,1815.7,1815.1,3.2078]
[1680551644714,12.0,1815.6,1815.2,1.0]
[1680551644916,3.2078,1815.9,1815.2,1.0]
[1680551645213,5.0,1815.7,1815.3,8.6838]
[1680551645510,5.0,1815.7,1815.4,1.0]
[1680551645715,10.2078,1815.9,1815.4,1.0]
[1680551645914,3.2078,1815.9,1815.4,1.0]
[1680551646315,3.2078,1815.9,1815.5,3.2078]
[1680551646518,3.2078,1815.9,1815.6,4.375]
[1680551646721,3.2078,1815.9,1815.5,3.2078]
[1680551646915,3.2078,1815.9,1815.4,14.0788]
[1680551647221,3.2078,1815.9,1815.4,14.62219722]
[1680551647426,3.2078,1815.9,1815.4,10.22719722]
[1680551647724,3.2078,1815.9,1815.4,7.01939722]
[1680551648018,3.2078,1815.9,1815.4,14.60819722]
[1680551648410,3.2078,1815.9,1815.4,11.40039722]
[1680551648919,3.2078,1815.9,1815.4,0.54339722]
[1680551649219,10.2078,1815.9,1815.3,1.0]
[1680551649433,5.0,1815.8,1815.3,1.0]
[1680551649720,5.0,1815.8,1815.2,7.5908]
[1680551649917,5.0,1815.5,1814.9,11.1285]
[1680551650119,4.406,1815.9,1814.9,4.6525]
[1680551650120,5.0,1815.2,1814.9,4.6525]
[1680551650422,8.2078,1815.2,1814.7,7.8632]
[1680551650628,0.00227608,1815.1,1814.7,7.8632]
[1680551651016,8.2078,1815.2,1814.7,7.8632]
[1680551651216,0.00303494,1815.0,1814.8,1.0]
[1680551651411,8.2078,1815.2,1814.7,7.8632]
[1680551651819,3.2078,1815.0,1814.7,4.6554]
[1680551652118,5.0,1814.7,1814.5,3.2078]
[1680551652526,3.2078,1815.2,1814.6,4.406]
[1680551652928,3.2078,1815.6,1815.1,3.2078]
[1680551653121,7.0,1815.6,1815.3,3.2078]
[1680551653315,5.0,1815.4,1815.3,3.2078]
[1680551653521,5.0,1815.4,1815.2,1.0]
[1680551654318,5.0,1815.4,1815.1,7.5828]
[1680551654518,5.0,1815.2,1814.8,9.882]
[1680551655024,0.00227608,1815.1,1815.0,5.476]
[1680551655232,5.0,1815.3,1815.0,8.6838]
[1680551655430,5.0,1815.3,1815.0,3.2078]
[1680551655822,5.0,1815.4,1815.0,8.6838]
[1680551656022,5.0,1815.4,1815.1,9.851]
[1680551657918,5.0,1815.4,1815.2,4.2078]
[1680551658732,5.0,1815.4,1815.3,1.0]
[1680551659330,5.0,1815.5,1815.3,5.383]
[1680551659923,3.2078,1815.7,1815.4,9.869]
[1680551660133,5.0,1815.6,1815.4,9.869]
[1680551660333,10.2078,1815.5,1815.0,0.5604375]
[1680551660525,5.0,1815.3,1814.9,5.476]
[1680551660733,3.2078,1815.5,1814.9,9.851]
[1680551660930,11.0,1815.7,1814.9,9.851]
[1680551660931,14.2078,1815.7,1814.9,9.851]
[1680551661630,3.2078,1815.5,1814.9,9.851]
[1680551662337,5.0,1815.3,1814.9,9.851]
[1680551662529,5.0,1815.3,1815.0,8.6838]
[1680551663134,3.2078,1815.5,1815.0,8.6838]
[1680551663529,3.2078,1815.5,1815.2,4.393]
[1680551663832,8.2078,1815.5,1815.2,9.869]
[1680551664637,3.2078,1815.5,1815.2,9.869]
[1680551664838,12.0,1815.8,1815.5,5.476]
[1680551665044,5.0,1815.7,1815.6,4.395]
[1680551665747,8.2078,1815.9,1815.6,9.871]
[1680551666551,8.2078,1815.9,1815.8,4.381]
[1680551666846,5.0,1815.9,1815.7,5.406]
[1680551667045,8.2078,1815.9,1815.6,0.55975745]
[1680551667352,3.2078,1815.7,1815.3,5.375]
[1680551667553,3.2078,1815.7,1815.5,4.383]
[1680551667850,5.0,1815.7,1815.5,4.383]
[1680551669046,5.0,1815.7,1815.6,9.869]
[1680551669249,12.0,1815.7,1815.6,9.869]
[1680551669746,10.2078,1816.0,1815.6,9.869]
[1680551669942,5.0,1815.9,1815.6,9.869]
[1680551670349,5.0,1815.9,1815.7,9.6838]
[1680551671252,5.0,1815.9,1815.6,4.393]
[1680551671842,5.0,1815.7,1815.6,4.393]
[1680551672042,5.0,1815.7,1815.4,4.381]
[1680551672452,12.0,1815.5,1815.3,0.55460655]
[1680551672658,12.0,1815.5,1815.2,4.406]
[1680551672951,12.0,1815.3,1815.2,4.406]
[1680551673457,12.0,1815.3,1815.0,11.37861892]
[1680551673458,12.0,1815.3,1815.0,15.77161892]
[1680551673751,12.0,1815.3,1815.0,4.393]
[1680551675951,12.0,1815.3,1814.9,1.72201892]
[1680551676153,12.0,1815.3,1815.0,4.393]
[1680551676547,5.0,1815.3,1815.1,5.383]
[1680551676950,5.0,1815.3,1815.1,4.383]
[1680551677759,10.2078,1815.4,1815.0,4.393]
[1680551677760,5.0,1815.1,1815.0,4.393]
[1680551678052,3.2078,1815.4,1814.8,8.29174336]
[1680551678053,5.0,1814.9,1814.8,8.29174336]
[1680551679551,5.0,1814.9,1814.8,0.55131578]
[1680551679757,5.0,1814.9,1814.7,4.92981892]
[1680551679945,0.00255292,1814.8,1814.7,2.2687356]
[1680551680654,0.00255292,1814.8,1814.7,3.2687356]
[1680551681052,0.00255292,1814.8,1814.7,1.54671668]
[1680551681253,0.00255292,1814.8,1814.7,2.27308863]
[1680551681457,0.00255292,1814.8,1814.5,2.83340593]
[1680551681458,3.21035292,1814.8,1814.5,1.72637195]
[1680551681652,12.0,1814.7,1814.6,1.7280339]
[1680551681846,12.0,1814.7,1814.5,1.7280339]
[1680551682152,12.00331203,1814.7,1814.5,1.7280339]
[1680551682956,12.00331203,1814.7,1814.4,1.7280339]
[1680551683154,12.0,1814.5,1814.4,1.7280339]
[1680551683355,0.00331203,1814.7,1814.4,1.7280339]
[1680551683658,0.00331203,1814.7,1814.4,3.72349927]
[1680551683859,5.0,1814.6,1814.5,1.7280339]
[1680551684046,5.0,1815.2,1814.7,5.476]
[1680551684254,3.2078,1815.6,1815.1,13.0788]
[1680551684449,5.0,1815.7,1815.3,7.5828]
[1680551684647,5.0,1815.5,1815.3,13.0588]
[1680551685261,12.0,1815.6,1815.3,13.0588]
[1680551685656,12.0,1815.6,1815.4,6.476]
[1680551686364,12.0,1815.6,1815.5,7.5828]
[1680551687261,12.0,1815.6,1815.5,8.5828]
[1680551688162,12.0,1815.6,1815.5,5.375]
[1680551688359,12.0,1815.6,1815.3,1.53887302]
[1680551689464,12.0,1815.6,1815.3,7.01487302]
[1680551690362,12.0,1815.6,1815.4,3.2078]
[1680551690561,12.0,1815.6,1815.3,7.01487302]
[1680551690762,12.0,1815.6,1815.3,0.53887302]
[1680551690969,12.0,1815.6,1815.3,5.476]
[1680551691267,12.0,1815.6,1815.2,7.1230339]
[1680551691960,12.0,1815.6,1815.3,8.6838]
[1680551693663,12.0,1815.6,1815.4,4.375]
[1680551693860,5.0,1815.6,1815.5,3.2078]
[1680551694164,5.0,1815.6,1815.5,4.2078]
[1680551698467,5.0,1815.6,1815.5,8.6028]
[1680551698666,5.0,1815.9,1815.6,10.476]
[1680551698871,7.0,1815.8,1815.7,9.6838]
[1680551699071,7.0,1815.8,1815.7,14.0668]
[1680551700364,12.0,1816.3,1815.7,14.0668]
[1680551700568,11.22730468,1816.1,1816.0,8.6838]
[1680551700760,5.0,1816.6,1816.0,13.0788]
[1680551700962,6.22730468,1816.5,1816.3,5.476]
[1680551701163,4.9036,1816.4,1816.3,5.476]
[1680551701565,11.13090468,1816.5,1816.3,5.476]
[1680551701771,11.13090468,1816.5,1816.4,9.869]
[1680551702971,11.13090468,1816.5,1816.4,13.0768]
[1680551702972,4.9036,1816.5,1816.4,13.0768]
[1680551705867,0.15,1817.0,1816.4,13.0768]
[1680551705868,6.22730468,1816.7,1816.4,13.0768]
[1680551706075,11.13090468,1816.8,1816.6,7.6008]
[1680551706272,11.13090468,1816.8,1816.6,13.0768]
[1680551706574,11.13090468,1816.8,1816.6,4.393]
[1680551707178,11.13090468,1816.8,1816.7,2.188]
[1680551708367,4.9036,1816.8,1816.7,7.664]
[1680551708568,0.15,1817.0,1816.7,7.664]
[1680551708569,0.15,1817.0,1816.8,3.619]
[1680551708764,11.28090468,1817.0,1816.9,10.8718]
[1680551711374,5.0536,1817.0,1816.9,10.8718]
[1680551713482,6.22730468,1817.5,1816.9,13.0678]
[1680551713777,3.2078,1817.9,1817.4,7.677]
[1680551713976,3.2078,1817.9,1817.8,2.19]
[1680551715480,0.1,1818.0,1817.8,2.19]
[1680551715673,0.1,1818.0,1817.9,2.201]
[1680551716483,0.1,1818.0,1817.9,5.4088]
[1680551716686,0.1,1818.0,1817.9,2.201]
[1680551718384,3.2078,1818.3,1817.9,2.201]
[1680551718581,3.2078,1818.3,1818.2,2.19]
[1680551719983,3.2078,1818.5,1818.2,2.19]
[1680551722076,7.6088,1818.7,1818.2,5.3978]
[1680551722279,3.2078,1818.7,1818.4,2.201]
[1680551723799,3.2078,1818.5,1818.4,2.201]
[1680551727180,5.4088,1818.5,1818.0,2.75234108]
[1680551727491,5.4088,1818.5,1818.0,2.201]
[1680551727492,3.2078,1818.2,1818.0,2.201]
[1680551728586,3.2078,1818.4,1818.0,2.201]
[1680551729086,3.2078,1818.4,1818.2,2.201]
[1680551729281,3.2078,1818.6,1818.3,2.194]
[1680551729486,3.2078,1818.6,1818.4,2.201]
[1680551729785,3.2078,1818.6,1818.2,2.19]
[1680551731996,3.2078,1818.4,1818.1,2.201]
[1680551735691,3.2078,1818.2,1818.1,2.201]
[1680551736396,3.2078,1818.4,1818.1,2.201]
[1680551742096,3.2078,1818.2,1818.1,2.201]
[1680551743493,3.2078,1818.2,1817.9,2.188]
[1680551744996,5.95564862,1818.4,1817.9,2.188]
[1680551745391,0.56784862,1818.3,1817.9,2.188]
[1680551746599,1.41962156,1818.3,1817.9,2.188]
[1680551747395,0.56784862,1818.3,1817.9,2.188]
[1680551747795,2.2,1818.2,1817.9,2.188]
[1680551748802,8.17664862,1818.2,1817.7,0.54827212]
[1680551749002,8.17664862,1818.2,1817.6,7.1048]
[1680551749602,3.2078,1818.0,1817.6,7.1048]
[1680551751805,3.2078,1818.0,1817.6,7.64182685]
[1680551752798,3.77564862,1818.0,1817.6,7.64182685]
[1680551754699,4.62742156,1818.0,1817.6,7.64182685]
[1680551755301,3.77564862,1818.0,1817.6,7.64182685]
[1680551755701,2.2,1817.9,1817.6,7.64182685]
[1680551756005,0.85125373,1818.6,1817.9,7.674]
[1680551756206,0.85125373,1818.7,1818.5,2.201]
[1680551756503,0.85143349,1818.8,1818.5,2.201]
[1680551756703,1.134625,1818.8,1818.5,2.201]
[1680551757405,1.134625,1818.9,1818.5,2.201]
[1680551757812,1.134625,1818.8,1818.5,2.201]
[1680551758005,1.134625,1818.9,1818.5,2.201]
[1680551758702,1.134625,1818.8,1818.6,0.40568895]
[1680551759304,1.134625,1818.9,1818.7,2.201]
[1680551759506,1.134625,1818.9,1818.8,2.201]
[1680551762007,1.134625,1818.9,1818.7,2.188]
[1680551764117,4.342425,1818.8,1818.7,2.188]
[1680551764414,5.3878,1818.8,1818.6,0.40568895]
[1680551764713,3.33638696,1818.7,1818.2,4.8441]
[1680551764910,3.2078,1818.4,1817.9,3.201]
[1680551765102,3.2078,1818.4,1817.9,5.4088]
[1680551765325,1.0,1818.7,1818.3,5.3978]
[1680551765607,0.15,1819.0,1818.6,2.201]
[1680551765811,0.15,1819.0,1818.8,2.201]
[1680551766005,0.15,1819.0,1818.9,3.2078]
[1680551766207,0.15,1819.0,1818.9,5.4018]
[1680551771217,0.15,1819.0,1818.9,6.4018]
[1680551772213,0.15,1819.0,1818.9,5.2978]
[1680551773712,0.15,1819.0,1818.9,5.79417885]
[1680551774115,0.15,1819.0,1818.9,4.79417885]
[1680551774316,3.3578,1819.0,1818.9,0.49637885]
[1680551774521,0.15,1819.0,1818.9,0.49637885]
[1680551774721,0.15,1819.0,1818.7,1.099]
[1680551776716,3.3578,1819.0,1818.7,1.099]
[1680551778621,3.3578,1819.0,1818.7,1.6504583]
[1680551780722,3.2078,1818.8,1818.7,0.5514583]
[1680551780923,3.2078,1818.8,1818.5,1.094]
[1680551781114,3.2078,1818.8,1818.5,1.65601065]
[1680551782221,1.099,1818.7,1818.3,1.099]
[1680551782617,1.099,1818.7,1818.3,4.3068]
[1680551783719,1.097,1818.9,1818.5,4.2968]
[1680551785124,1.099,1818.9,1818.5,3.2078]
[1680551786225,1.099,1818.9,1818.4,1.099]
[1680551787124,3.2078,1818.8,1818.4,1.099]
[1680551787420,3.2078,1818.6,1818.3,0.55324146]
[1680551787627,3.2078,1818.6,1818.2,1.63870614]
[1680551788422,3.2078,1818.6,1818.2,3.3085833]
[1680551788617,3.2078,1818.6,1818.2,1.099]
[1680551788819,3.2078,1818.6,1818.3,0.22617748]
[1680551789719,4.3068,1818.4,1818.3,0.22617748]
[1680551789918,4.3068,1818.4,1818.0,1.101]
[1680551790823,3.2078,1818.2,1818.0,1.101]
[1680551792126,3.2078,1818.2,1817.9,1.094]
[1680551795023,4.3048,1818.2,1817.8,0.55924783]
[1680551795224,4.3048,1818.2,1817.7,4.3068]
[1680551796728,4.3048,1818.2,1817.7,4.8635589]
[1680551797226,1.097,1818.2,1817.7,4.8635589]
[1680551797426,4.3038,1818.4,1817.9,1.089]
[1680551797633,4.3038,1818.4,1817.9,4.2968]
[1680551802042,3.2078,1818.4,1818.1,1.089]
[1680551802241,3.2078,1818.6,1818.3,1.099]
[1680551802441,5.43913882,1818.9,1818.4,1.099]
[1680551802935,4.3038,1818.9,1818.4,1.099]
[1680551803441,4.3038,1818.9,1818.5,0.13822643]
[1680551804740,4.3038,1818.9,1818.5,0.25709916]
[1680551806141,4.3048,1818.7,1818.5,0.25709916]
[1680551807836,4.3048,1818.7,1818.2,1.089]
[1680551808038,1.097,1818.7,1818.2,1.089]
[1680551808644,1.097,1818.7,1818.2,1.64684603]
[1680551809047,1.097,1818.7,1818.2,4.85464603]
[1680551812148,4.3048,1818.8,1818.3,1.094]
[1680551812650,3.2078,1818.6,1818.3,1.094]
[1680551813145,4.3068,1818.6,1818.2,0.55784603]
[1680551813348,3.2078,1818.4,1818.1,2.74852804]
[1680551813742,3.2078,1818.4,1818.1,3.30253433]
[1680551814244,4.3068,1818.4,1818.1,0.55400629]
[1680551814543,4.3068,1818.4,1818.0,1.099]
[1680551817043,1.099,1818.4,1818.0,1.099]
[1680551817449,1.099,1818.4,1818.1,3.2078]
[1680551817648,4.3048,1818.6,1818.2,1.097]
[1680551818752,4.3048,1818.6,1818.3,0.17330138]
[1680551820247,1.097,1818.6,1818.3,0.17330138]
[1680551820553,0.85061182,1818.8,1818.5,1.099]
[1680551820747,0.85061182,1818.9,1818.6,1.094]
[1680551824754,0.85061182,1818.9,1818.7,1.099]
[1680551825146,4.05841182,1818.8,1818.5,0.55446478]
[1680551825454,3.2078,1818.6,1818.4,1.097]
[1680551828352,0.85061182,1818.7,1818.4,1.097]
[1680551829359,0.85061182,1818.8,1818.4,1.097]
[1680551830956,0.85061182,1818.8,1818.6,1.099]
[1680551831355,0.85061182,1818.9,1818.6,1.099]
[1680551832951,0.85061182,1818.9,1818.7,1.09]
[1680551833760,0.85061182,1818.9,1818.8,0.15193993]
[1680551835560,4.20841182,1819.0,1818.8,1.24893993]
[1680551835762,4.20841182,1819.0,1818.9,1.09]
[1680551835960,1.00061182,1819.0,1818.9,1.09]
[1680551836163,0.15,1819.0,1818.9,1.09]
[1680551837958,0.15,1819.0,1818.9,1.0863429]
[1680551843962,0.15,1819.0,1818.9,6.5623429]
[1680551844154,0.15,1819.0,1818.9,7.5623429]
[1680551844860,3.2078,1819.2,1819.0,0.15]
[1680551845054,3.2078,1819.2,1819.1,2.196]
[1680551845255,0.85061182,1819.4,1819.1,2.196]
[1680551845456,0.85061182,1819.4,1819.3,1.099]
[1680551847159,0.85061182,1819.6,1819.3,1.099]
[1680551847360,0.85061182,1819.6,1819.5,2.196]
[1680551848472,4.05841182,1819.7,1819.5,2.196]
[1680551848662,4.05841182,1819.7,1819.6,1.09]
[1680551848971,4.05841182,1819.7,1819.6,1.83514094]
[1680551849268,4.05821705,1819.7,1819.6,1.83514094]
[1680551852163,4.05821705,1819.7,1819.6,1.83414094]
[1680551853473,3.2078,1819.7,1819.6,1.83414094]
[1680551861989,3.2078,1819.7,1819.6,0.74514094]
[1680551862181,3.2078,1819.7,1819.6,1.83414094]
[1680551862488,3.2078,1819.7,1819.6,1.089]
[1680551863887,3.2078,1819.7,1819.6,1.83470226]
[1680551866382,3.2078,1819.7,1819.6,0.74570226]
[1680551866892,4.3068,1819.7,1819.6,0.74570226]
[1680551867076,4.3068,1819.7,1819.3,1.099]
[1680551867275,3.2078,1819.4,1819.2,0.54488029]
[1680551867582,3.2078,1819.4,1819.1,1.099]
[1680551867785,3.2078,1819.2,1819.0,1.62623188]
[1680551868084,3.2078,1819.2,1818.9,1.099]
[1680551868984,3.2078,1819.2,1819.0,1.09]
[1680551871280,4.3038,1819.4,1819.0,1.09]
[1680551871886,4.3038,1819.4,1819.2,1.099]
[1680551871887,3.2078,1819.4,1819.2,1.099]
[1680551874289,1.093,1819.3,1818.8,1.09]
[1680551874489,3.2078,1819.1,1818.8,1.09]
[1680551874892,3.2078,1819.1,1818.9,0.49962483]
[1680551875086,3.2078,1819.1,1818.8,1.09]
[1680551878798,3.2078,1819.1,1818.9,0.35293194]
[1680551879097,4.87409456,1819.4,1819.0,1.099]
[1680551881997,3.77509456,1819.4,1819.1,1.099]
[1680551882399,0.56729456,1819.3,1819.1,1.099]
[1680551882697,3.2078,1819.2,1819.1,1.099]
[1680551883203,3.2078,1819.2,1818.9,1.09]
[1680551887600,3.77509456,1819.2,1818.9,1.09]
[1680551887794,3.2078,1819.0,1818.9,1.09]
[1680551889498,4.3008,1819.0,1818.7,0.56329035]
[1680551889698,4.3008,1819.0,1818.5,4.15938648]
[1680551890201,4.3008,1819.0,1818.5,4.71255507]
[1680551892005,4.3048,1819.0,1818.6,1.097]
[1680551894008,1.097,1819.0,1818.7,0.09970246]
[1680551894407,4.3048,1819.0,1818.6,1.097]
[1680551900413,3.2078,1819.0,1818.8,1.099]
[1680551902015,3.2078,1819.0,1818.9,1.094]
[1680551904521,3.77509456,1819.2,1818.9,1.094]
[1680551905417,4.62551161,1819.2,1818.9,1.094]
[1680551905721,0.56729456,1819.1,1818.9,1.094]
[1680551905910,4.62551161,1819.2,1818.9,1.094]
[1680551906112,0.56729456,1819.1,1818.9,1.094]
[1680551908116,0.56729456,1819.1,1818.8,1.089]
[1680551908317,3.2078,1819.0,1818.8,1.089]
[1680551908818,3.2078,1819.0,1818.9,0.1002389]
[1680551909119,3.2078,1819.0,1818.8,1.089]
[1680551909823,3.77509456,1819.0,1818.8,1.089]
[1680551910027,3.2078,1819.0,1818.8,1.089]